bitfinex-derivatives/quotes_BTCF0:USTF0_20230101
["timestamp","ask_amount","ask_price","bid_price","bid_amount"]
[1672562490174,0.37629606,16530.0,16529.0,0.0061]
[1672562494587,0.07559606,16530.0,16529.0,0.0061]
[1672562494799,0.37629606,16530.0,16529.0,0.0061]
[1672562494995,0.07559606,16530.0,16529.0,0.0061]
[1672562495209,0.37629606,16530.0,16529.0,0.0061]
[1672562495424,0.07559606,16530.0,16529.0,0.0061]
[1672562495637,0.37629606,16530.0,16529.0,0.0061]
[1672562499319,0.07559606,16530.0,16529.0,0.00586484]
[1672562499529,0.37629606,16530.0,16529.0,0.00586484]
[1672562500692,0.07559606,16530.0,16529.0,0.00586484]
[1672562500892,0.37629606,16530.0,16529.0,0.00586484]
[1672562503523,0.07559606,16530.0,16529.0,0.00586484]
[1672562503733,0.37629606,16530.0,16529.0,0.00586484]
[1672562506147,0.37619606,16530.0,16529.0,0.00586484]
[1672562506767,0.07549606,16530.0,16529.0,0.00586484]
[1672562506982,0.37619606,16530.0,16529.0,0.00586484]
[1672562507407,0.37619606,16530.0,16529.0,0.00596484]
[1672562507826,0.07549606,16530.0,16529.0,0.00596484]
[1672562508033,0.07559606,16530.0,16529.0,0.00596484]
[1672562508245,0.37629606,16530.0,16529.0,0.00596484]
[1672562510668,0.07559606,16530.0,16529.0,0.00596484]
[1672562510884,0.37629606,16530.0,16529.0,0.00596484]
[1672562513503,0.07559606,16530.0,16529.0,0.00596484]
[1672562513722,0.37629606,16530.0,16529.0,0.00596484]
[1672562513940,0.07559606,16530.0,16529.0,0.00596484]
[1672562514133,0.37629606,16530.0,16529.0,0.00596484]
[1672562514344,1.32914667,16530.0,16529.0,0.00596484]
[1672562514551,1.02844667,16530.0,16529.0,0.00596484]
[1672562514771,1.32914667,16530.0,16529.0,0.00596484]
[1672562516655,0.37629606,16530.0,16529.0,0.00596484]
[1672562517494,0.3158,16530.0,16529.0,0.00596484]
[1672562518344,0.0151,16530.0,16529.0,0.00596484]
[1672562518556,0.3158,16530.0,16529.0,0.00596484]
[1672562520554,0.0151,16530.0,16529.0,0.00596484]
[1672562520755,0.3158,16530.0,16529.0,0.00596484]
[1672562522763,0.0151,16530.0,16529.0,0.00596484]
[1672562522972,0.3158,16530.0,16529.0,0.00596484]
[1672562523492,1.32914667,16530.0,16529.0,0.00596484]
[1672562525695,0.37629606,16530.0,16529.0,0.00596484]
[1672562530527,0.07559606,16530.0,16529.0,0.00596484]
[1672562530851,0.37629606,16530.0,16529.0,0.00596484]
[1672562531375,0.3761044,16530.0,16529.0,0.00596484]
[1672562538832,0.0754044,16530.0,16529.0,0.00596484]
[1672562539045,0.3761044,16530.0,16529.0,0.00596484]
[1672562540202,0.0754044,16530.0,16529.0,0.00596484]
[1672562540409,0.3761044,16530.0,16529.0,0.00596484]
[1672562540822,0.0754044,16530.0,16529.0,0.00596484]
[1672562541043,0.3761044,16530.0,16529.0,0.00596484]
[1672562542405,0.0754044,16530.0,16529.0,0.00596484]
[1672562542614,0.3761044,16530.0,16529.0,0.00596484]
[1672562547351,0.0754044,16530.0,16529.0,0.00596484]
[1672562547663,0.3761044,16530.0,16529.0,0.00596484]
[1672562548184,0.0754044,16530.0,16529.0,0.00596484]
[1672562548402,0.3761044,16530.0,16529.0,0.00596484]
[1672562549447,0.0754044,16530.0,16529.0,0.00596484]
[1672562549658,0.3761044,16530.0,16529.0,0.00596484]
[1672562551660,0.0754044,16530.0,16529.0,0.00596484]
[1672562552076,0.3761044,16530.0,16529.0,0.00596484]
[1672562552493,0.0754044,16530.0,16529.0,0.00596484]
[1672562552706,0.3761044,16530.0,16529.0,0.00596484]
[1672562553122,0.0754044,16530.0,16529.0,0.00596484]
[1672562553550,0.3761044,16530.0,16529.0,0.00596484]
[1672562553965,1.32832659,16530.0,16529.0,0.00596484]
[1672562554385,1.02762659,16530.0,16529.0,0.00596484]
[1672562554605,1.32832659,16530.0,16529.0,0.00596484]
[1672562558497,1.02762659,16530.0,16529.0,0.00596484]
[1672562558707,1.32832659,16530.0,16529.0,0.00596484]
[1672562560595,0.3761044,16530.0,16529.0,0.00596484]
[1672562561750,0.0754044,16530.0,16529.0,0.00596484]
[1672562561963,0.3761044,16530.0,16529.0,0.00596484]
[1672562563534,0.0754044,16530.0,16529.0,0.00596484]
[1672562563748,0.3761044,16530.0,16529.0,0.00596484]
[1672562566273,0.0754044,16530.0,16529.0,0.00596484]
[1672562566483,0.3,16534.0,16532.0,1.62167341]
[1672562566905,0.3007,16533.0,16532.0,1.62167341]
[1672562567217,0.3007,16533.0,16532.0,1.45950607]
[1672562567430,0.36118509,16533.0,16532.0,1.45960607]
[1672562567841,0.46628509,16533.0,16532.0,1.46360607]
[1672562568795,0.16558509,16533.0,16532.0,1.46360607]
[1672562569314,0.46628509,16533.0,16532.0,1.31724547]
[1672562569529,0.16558509,16533.0,16532.0,1.31724547]
[1672562569940,0.36128509,16533.0,16532.0,1.31324547]
[1672562570264,0.46628509,16533.0,16532.0,1.31724547]
[1672562570471,0.36128509,16533.0,16532.0,1.31324547]
[1672562570681,0.46628509,16533.0,16532.0,1.31724547]
[1672562571311,0.46628509,16533.0,16532.0,1.18552093]
[1672562573197,0.46628509,16533.0,16532.0,1.06696884]
[1672562574145,0.51628509,16533.0,16532.0,1.06696884]
[1672562574572,0.51628509,16533.0,16532.0,0.96027196]
[1672562574573,0.46628509,16533.0,16532.0,0.96027196]
[1672562575308,0.46628509,16533.0,16532.0,0.86424477]
[1672562575732,0.46628509,16533.0,16532.0,0.7778203]
[1672562576886,0.46628509,16533.0,16532.0,0.70003828]
[1672562577299,0.46628509,16533.0,16532.0,0.59996446]
[1672562577509,0.4058,16533.0,16532.0,0.59996446]
[1672562577733,0.4058,16533.0,16532.0,0.53996802]
[1672562578669,0.4058,16533.0,16532.0,0.48597122]
[1672562579195,0.4058,16533.0,16532.0,0.4073041]
[1672562579827,0.4058,16533.0,16532.0,0.3665737]
[1672562580780,0.4058,16533.0,16532.0,0.32991634]
[1672562581302,0.4058,16533.0,16532.0,0.26185471]
[1672562581725,0.4058,16533.0,16532.0,0.23566924]
[1672562583286,0.1551,16533.0,16532.0,0.21210232]
[1672562583500,0.46628509,16533.0,16532.0,0.21210232]
[1672562584445,0.21558509,16533.0,16532.0,0.21210232]
[1672562584660,0.51628509,16533.0,16532.0,0.21210232]
[1672562584870,0.46628509,16533.0,16532.0,0.21210232]
[1672562585407,0.46628509,16533.0,16532.0,0.19089209]
[1672562586760,0.16558509,16533.0,16532.0,0.19089209]
[1672562587082,0.51628509,16533.0,16532.0,0.19089209]
[1672562587290,0.46628509,16533.0,16532.0,0.17180289]
[1672562589074,0.16558509,16533.0,16532.0,0.17180289]
[1672562589296,0.51628509,16533.0,16532.0,0.15462261]
[1672562589612,0.46628509,16533.0,16532.0,0.15462261]
[1672562591193,0.16558509,16533.0,16532.0,0.15462261]
[1672562591399,0.21558509,16533.0,16532.0,0.13916035]
[1672562591613,0.16558509,16533.0,16532.0,0.13916035]
[1672562591811,0.46628509,16533.0,16532.0,0.13916035]
[1672562592019,0.51628509,16533.0,16532.0,0.13916035]
[1672562592235,0.46628509,16533.0,16532.0,0.13916035]
[1672562593279,0.46628509,16533.0,16532.0,0.12524432]
[1672562595505,0.46628509,16533.0,16532.0,0.11271989]
[1672562596028,0.3,16534.0,16533.0,2.53371491]
[1672562596229,0.6007,16534.0,16533.0,2.28034342]
[1672562596438,0.66118143,16534.0,16533.0,2.28034342]
[1672562596969,0.66118143,16534.0,16533.0,2.28044342]
[1672562597176,0.66118143,16534.0,16533.0,2.29044342]
[1672562597177,0.66128143,16534.0,16533.0,2.29044342]
[1672562597388,0.67128143,16534.0,16533.0,2.05053709]
[1672562599597,0.67128143,16534.0,16533.0,1.8346214]
[1672562600221,0.37128143,16534.0,16533.0,1.8346214]
[1672562600856,0.67128143,16534.0,16533.0,1.8346214]
[1672562601483,0.67128143,16534.0,16533.0,1.64029728]
[1672562601484,1.62362275,16534.0,16533.0,1.64029728]
[1672562603597,1.62362275,16534.0,16533.0,1.46540557]
[1672562605481,1.62362275,16534.0,16533.0,1.30800303]
[1672562606015,0.67128143,16534.0,16533.0,1.30800303]
[1672562607276,0.37128143,16534.0,16533.0,1.30800303]
[1672562607592,0.37128143,16534.0,16533.0,1.16634074]
[1672562609796,0.37128143,16534.0,16533.0,0.92221061]
[1672562610845,0.37128143,16534.0,16533.0,0.82998955]
[1672562611697,0.37128143,16534.0,16533.0,0.73612861]
[1672562612325,0.37128143,16534.0,16533.0,0.65165377]
[1672562613268,0.37128143,16534.0,16533.0,0.57562641]
[1672562613797,0.37128143,16534.0,16533.0,0.38153179]
[1672562614218,0.37128143,16534.0,16533.0,0.33251663]
[1672562615270,0.37128143,16534.0,16533.0,0.28840298]
[1672562615591,0.37128143,16534.0,16533.0,0.1230307]
[1672562616311,0.37128143,16534.0,16533.0,0.09986565]
[1672562617370,0.37128143,16534.0,16533.0,0.0790171]
[1672562617586,0.05,16533.0,16532.0,0.0382033]
[1672562617781,1.00125882,16533.0,16532.0,0.0382033]
[1672562618205,1.30195882,16533.0,16532.0,0.0382033]
[1672562618421,1.30195882,16533.0,16532.0,0.03438298]
[1672562618740,1.32195882,16533.0,16532.0,0.04448298]
[1672562619160,1.32205882,16533.0,16532.0,0.04448298]
[1672562619372,1.32205882,16533.0,16532.0,0.04003469]
[1672562619580,1.30205882,16533.0,16532.0,0.03003469]
[1672562619778,2.27227922,16533.0,16532.0,0.01]
[1672562620104,2.25327922,16533.0,16532.0,0.01]
[1672562620311,2.27227922,16533.0,16532.0,0.01]
[1672562621777,2.27227922,16533.0,16532.0,0.00900001]
[1672562623789,2.27227922,16533.0,16532.0,0.00810001]
[1672562625889,2.27227922,16533.0,16532.0,0.00729001]
[1672562626719,1.3210204,16533.0,16532.0,0.00729001]
[1672562627149,1.3210204,16533.0,16532.0,0.00656101]
[1672562627778,0.05,16532.0,16529.0,0.04590491]
[1672562627990,0.3007,16531.0,16528.0,0.05]
[1672562628201,0.05,16530.0,16528.0,0.05]
[1672562628825,0.05,16530.0,16529.0,0.009]
[1672562629037,0.0501,16530.0,16529.0,0.009]
[1672562629247,0.0791,16530.0,16528.0,0.0581]
[1672562629563,0.0791,16530.0,16528.0,0.058]
[1672562629771,0.0791,16530.0,16528.0,0.05220001]
[1672562629989,0.079,16530.0,16528.0,0.05220001]
[1672562630408,0.079,16530.0,16528.0,0.05230001]
[1672562630619,0.079,16530.0,16529.0,0.008]
[1672562631137,0.0791,16530.0,16528.0,0.05230001]
[1672562631351,0.0791,16530.0,16528.0,0.05220001]
[1672562631565,0.0791,16530.0,16529.0,0.008]
[1672562631776,0.05,16529.0,16527.0,0.83084512]
[1672562631980,0.05,16529.0,16527.0,0.6007]
[1672562632192,0.05,16529.0,16528.0,0.008]
[1672562632502,0.05,16529.0,16527.0,0.6007]
[1672562632715,0.05,16529.0,16528.0,0.05]
[1672562633868,0.087,16529.0,16528.0,0.004]
[1672562634197,0.087,16529.0,16528.0,0.0541]
[1672562634598,0.0871,16529.0,16528.0,0.0541]
[1672562635862,0.0871,16529.0,16528.0,0.0041]
[1672562639225,1.03845817,16529.0,16528.0,0.0041]
[1672562642277,1.03845817,16529.0,16528.0,0.00369001]
[1672562643641,1.09895789,16529.0,16528.0,0.00369001]
[1672562644053,0.14759972,16529.0,16528.0,0.00369001]
[1672562644260,0.14759972,16529.0,16528.0,0.00332101]
[1672562646371,0.14759972,16529.0,16528.0,0.00298891]
[1672562647952,0.44829972,16529.0,16528.0,0.00298891]
[1672562648374,0.44829972,16529.0,16528.0,0.00269002]
[1672562654692,1.39983508,16529.0,16528.0,0.00269002]
[1672562657225,1.39983508,16529.0,16528.0,0.00242102]
[1672562659110,0.44829972,16529.0,16528.0,0.00242102]
[1672562659317,0.44829972,16529.0,16528.0,0.00217892]
[1672562661225,0.44829972,16529.0,16528.0,0.00196103]
[1672562663310,0.14759972,16529.0,16528.0,0.00176493]
[1672562663554,0.44829972,16529.0,16528.0,0.00176493]
[1672562664880,1.39959818,16529.0,16528.0,0.00176493]
[1672562665858,1.09889818,16529.0,16528.0,0.00176493]
[1672562666050,1.39959818,16529.0,16528.0,0.00176493]
[1672562666254,1.09889818,16529.0,16528.0,0.00176493]
[1672562666673,1.39959818,16529.0,16528.0,0.00176493]
[1672562668216,1.09889818,16529.0,16528.0,0.00176493]
[1672562668470,1.39959818,16529.0,16528.0,0.00176493]
[1672562672235,1.39959818,16529.0,16528.0,0.00158844]
[1672562673380,1.09889818,16529.0,16528.0,0.00158844]
[1672562673594,1.39959818,16529.0,16528.0,0.00158844]
[1672562673909,0.14759972,16529.0,16528.0,0.00158844]
[1672562674437,0.44829972,16529.0,16528.0,0.0014296]
[1672562674844,0.14759972,16529.0,16528.0,0.0014296]
[1672562675169,0.44829972,16529.0,16528.0,0.0014296]
[1672562676219,0.44829972,16529.0,16528.0,0.00128665]
[1672562677057,0.14759972,16529.0,16528.0,0.00128665]
[1672562677273,0.44829972,16529.0,16528.0,0.00128665]
[1672562678322,0.44829972,16529.0,16528.0,0.00115799]
[1672562679692,1.40022147,16529.0,16528.0,0.00115799]
[1672562681478,1.09952147,16529.0,16528.0,0.00115799]
[1672562682113,0.14759972,16529.0,16528.0,0.00115799]
[1672562687258,0.14759972,16529.0,16528.0,0.0010422]
[1672562689686,0.14759972,16529.0,16528.0,0.3017422]
[1672562692514,0.14759972,16529.0,16528.0,0.0010422]
[1672562692726,1.0991737,16529.0,16528.0,0.3017422]
[1672562695043,0.14759972,16529.0,16528.0,0.3017422]
[1672562695253,0.14759972,16529.0,16528.0,0.0010422]
[1672562696300,0.14759972,16529.0,16528.0,0.0510422]
[1672562697569,0.0871,16529.0,16528.0,0.0510422]
[1672562697881,0.0871,16529.0,16528.0,0.0010422]
[1672562702612,0.3878,16529.0,16528.0,0.0010422]
[1672562703552,0.44829972,16529.0,16528.0,0.0010422]
[1672562704399,1.3998737,16529.0,16528.0,0.0010422]
[1672562709242,1.0991737,16529.0,16528.0,0.0010422]
[1672562709765,1.0991737,16529.0,16528.0,0.00093799]
[1672562710810,0.14759972,16529.0,16528.0,0.00093799]
[1672562711861,0.14759972,16529.0,16528.0,0.0008442]
[1672562713961,0.14759972,16529.0,16528.0,0.00075979]
[1672562715972,0.14759972,16529.0,16528.0,0.00068382]
[1672562716393,0.16266971,16529.0,16528.0,0.00068382]
[1672562724266,1.11457186,16529.0,16528.0,0.00068382]
[1672562724902,1.11457186,16529.0,16528.0,0.00061544]
[1672562726580,0.16266971,16529.0,16528.0,0.00061544]
[1672562726793,0.16266971,16529.0,16528.0,0.0005539]
[1672562728995,0.16266971,16529.0,16528.0,0.0004939]
[1672562730884,0.16266971,16529.0,16528.0,0.0004339]
[1672562734791,1.11476118,16529.0,16528.0,0.0004339]
[1672562740570,1.11476118,16529.0,16528.0,0.3011339]
[1672562741308,0.16266971,16529.0,16528.0,0.3011339]
[1672562742251,0.16266971,16529.0,16528.0,0.0004339]
[1672562742466,0.16266971,16529.0,16528.0,0.3011339]
[1672562743947,0.16266971,16529.0,16528.0,0.0004339]
[1672562746151,1.11476118,16529.0,16528.0,0.0004339]
[1672562747403,1.11476118,16529.0,16528.0,0.0003739]
[1672562748360,0.16266971,16529.0,16528.0,0.0003739]
[1672562749409,0.16266971,16529.0,16528.0,0.0003139]
[1672562751510,0.16266971,16529.0,16528.0,0.0002539]
[1672562753504,0.16266971,16529.0,16528.0,0.0001939]
[1672562754777,1.1150349,16529.0,16528.0,0.0001939]
[1672562757718,1.05453518,16529.0,16528.0,0.0001939]
[1672562761805,0.10216999,16529.0,16528.0,0.0001939]
[1672562762444,0.05,16528.0,16527.0,0.27080452]
[1672562763601,0.11050338,16528.0,16527.0,0.27080452]
[1672562763815,0.11250338,16528.0,16527.0,0.35380452]
[1672562764025,0.11250338,16528.0,16527.0,0.083]
[1672562764433,0.11250338,16528.0,16527.0,0.07480001]
[1672562764855,0.11260338,16528.0,16527.0,0.07480001]
[1672562766439,0.11260338,16528.0,16527.0,0.06732001]
[1672562768434,0.11260338,16528.0,16527.0,0.11058801]
[1672562769797,1.06447812,16528.0,16527.0,0.11058801]
[1672562770008,1.06447812,16528.0,16527.0,0.06058801]
[1672562774429,0.11260338,16528.0,16527.0,0.06058801]
[1672562777369,0.11260338,16528.0,16527.0,0.05452921]
[1672562779470,0.11260338,16528.0,16527.0,0.04907629]
[1672562781362,0.11260338,16528.0,16527.0,0.04416867]
[1672562783563,0.11260338,16528.0,16527.0,0.03975181]
[1672562791766,0.11260338,16528.0,16527.0,0.08975181]
[1672562791979,0.06260338,16528.0,16527.0,0.08975181]
[1672562794384,1.01429773,16528.0,16527.0,0.08975181]
[1672562800385,1.01429773,16528.0,16527.0,0.39045181]
[1672562801028,0.06260338,16528.0,16527.0,0.39045181]
[1672562807967,1.01429773,16528.0,16527.0,0.39045181]
[1672562810369,0.06260338,16528.0,16527.0,0.39045181]
[1672562812370,1.01429773,16528.0,16527.0,0.39045181]
[1672562814672,0.06260338,16528.0,16527.0,0.39045181]
[1672562814885,0.06260338,16528.0,16527.0,0.08975181]
[1672562815095,0.06260338,16528.0,16527.0,0.39045181]
[1672562815305,0.06260338,16528.0,16527.0,0.08975181]
[1672562815618,0.06260338,16528.0,16527.0,0.39045181]
[1672562817720,0.0021,16528.0,16527.0,0.39045181]
[1672562823821,0.06260338,16528.0,16527.0,0.39045181]
[1672562824871,0.06260338,16528.0,16527.0,0.08975181]
[1672562825188,0.06260338,16528.0,16527.0,0.39045181]
[1672562830658,1.01429773,16528.0,16527.0,0.39045181]
[1672562834125,1.01429773,16528.0,16527.0,0.08975181]
[1672562834337,1.01429773,16528.0,16527.0,0.39045181]
[1672562835283,0.06260338,16528.0,16527.0,0.39045181]
[1672562837074,0.06260338,16528.0,16527.0,0.39021704]
[1672562838020,0.06260338,16528.0,16527.0,0.08951704]
[1672562838336,0.06260338,16528.0,16527.0,0.39021704]
[1672562846638,1.01429773,16528.0,16527.0,0.39021704]
[1672562848940,0.06260338,16528.0,16527.0,0.39021704]
[1672562864070,0.06260338,16528.0,16527.0,0.08951704]
[1672562864279,0.06260338,16528.0,16527.0,0.39021704]
[1672562874057,1.01429773,16528.0,16527.0,0.39021704]
[1672562876376,0.06260338,16528.0,16527.0,0.39021704]
[1672562877848,0.0021,16528.0,16527.0,0.39021704]
[1672562881416,0.01716999,16528.0,16527.0,0.39021704]
[1672562883840,0.07767337,16528.0,16527.0,0.39021704]
[1672562884776,0.07767337,16528.0,16527.0,0.08951704]
[1672562884992,0.07767337,16528.0,16527.0,0.39021704]
[1672562885520,0.07767337,16528.0,16527.0,0.08951704]
[1672562885831,0.07767337,16528.0,16527.0,0.39021704]
[1672562888885,0.07767337,16528.0,16527.0,0.39009383]
[1672562895931,0.07767337,16528.0,16527.0,0.08939383]
[1672562896351,0.07767337,16528.0,16527.0,0.39009383]
[1672562899294,1.02936772,16528.0,16527.0,0.39009383]
[1672562899821,1.02936772,16528.0,16527.0,0.08939383]
[1672562900033,1.02936772,16528.0,16527.0,0.39009383]
[1672562901613,1.02936772,16528.0,16527.0,0.08939383]
[1672562901931,1.02936772,16528.0,16527.0,0.39009383]
[1672562904446,1.02936772,16528.0,16527.0,0.08939383]
[1672562904966,1.02936772,16528.0,16527.0,0.39009383]
[1672562906019,0.07767337,16528.0,16527.0,0.39009383]
[1672562909077,0.07767337,16528.0,16527.0,0.08939383]
[1672562909389,0.07767337,16528.0,16527.0,0.39009383]
[1672562909799,0.07767337,16528.0,16527.0,0.08939383]
[1672562910008,0.07767337,16528.0,16527.0,0.39009383]
[1672562925891,0.07767337,16528.0,16527.0,0.08939383]
[1672562926107,0.07767337,16528.0,16527.0,0.39009383]
[1672562934931,0.07767337,16528.0,16527.0,0.39002034]
[1672562937978,0.01716999,16528.0,16527.0,0.39002034]
[1672562943543,0.01716999,16528.0,16527.0,0.08932034]
[1672562943755,0.01716999,16528.0,16527.0,0.39002034]
[1672562943964,0.07767337,16528.0,16527.0,0.39002034]
[1672562964673,0.07767337,16528.0,16527.0,0.08932034]
[1672562964887,0.07767337,16528.0,16527.0,0.39002034]
[1672562967407,0.12767337,16528.0,16527.0,0.39002034]
[1672562968456,0.07767337,16528.0,16527.0,0.39002034]
[1672562971615,0.07767337,16528.0,16527.0,0.08932034]
[1672562972049,0.07767337,16528.0,16527.0,0.39002034]
[1672562975307,0.07767337,16528.0,16527.0,0.08932034]
[1672562975504,0.07767337,16528.0,16527.0,0.39002034]
[1672562983181,0.07767337,16528.0,16527.0,0.38979709]
[1672562988752,0.07751529,16528.0,16527.0,0.38979709]
[1672562994642,0.07751529,16528.0,16527.0,0.08909709]
[1672562994855,0.07751529,16528.0,16527.0,0.38979709]
[1672562997887,0.01701191,16528.0,16527.0,0.38979709]
[1672562999577,0.01701191,16528.0,16527.0,0.08909709]
[1672562999792,0.01701191,16528.0,16527.0,0.38979709]
[1672563003992,0.07751529,16528.0,16527.0,0.38979709]
[1672563018602,0.07751529,16528.0,16527.0,0.08909709]
[1672563018809,0.07751529,16528.0,16527.0,0.38979709]
[1672563040147,0.07751529,16528.0,16527.0,0.08909709]
[1672563040364,0.07751529,16528.0,16527.0,0.38979709]
[1672563043417,0.07751529,16528.0,16527.0,0.38967834]
[1672563047830,0.07751529,16528.0,16527.0,0.08897834]
[1672563048238,0.07751529,16528.0,16527.0,0.38967834]
[1672563050564,0.12751529,16528.0,16527.0,0.38967834]
[1672563051392,0.07751529,16528.0,16527.0,0.38967834]
[1672563053597,0.12751529,16528.0,16527.0,0.33967834]
[1672563054030,0.07751529,16528.0,16527.0,0.33967834]
[1672563056031,0.12751529,16528.0,16527.0,0.33967834]
[1672563057088,0.07751529,16528.0,16527.0,0.33967834]
[1672563058250,0.01701191,16528.0,16527.0,0.33967834]
[1672563062969,0.01701191,16528.0,16527.0,0.03897834]
[1672563063175,0.01701191,16528.0,16527.0,0.33967834]
[1672563063706,0.96870626,16528.0,16527.0,0.33967834]
[1672563064237,1.02920964,16528.0,16527.0,0.33967834]
[1672563068122,0.07751529,16528.0,16527.0,0.33967834]
[1672563070127,0.12751529,16528.0,16527.0,0.33967834]
[1672563070542,0.07751529,16528.0,16527.0,0.33967834]
[1672563083059,0.07751529,16528.0,16527.0,0.03897834]
[1672563083272,0.07751529,16528.0,16527.0,0.33967834]
[1672563084009,0.07751529,16528.0,16527.0,0.03897834]
[1672563084320,0.07751529,16528.0,16527.0,0.33967834]
[1672563084743,0.07751529,16528.0,16527.0,0.03897834]
[1672563084943,0.07751529,16528.0,16527.0,0.33967834]
[1672563086212,0.07751529,16528.0,16527.0,0.03897834]
[1672563086422,0.07731918,16528.0,16527.0,0.33967834]
[1672563089056,0.07731918,16528.0,16527.0,0.03897834]
[1672563089260,0.07731918,16528.0,16527.0,0.33967834]
[1672563105492,0.07731918,16528.0,16527.0,0.03897834]
[1672563105805,0.07731918,16528.0,16527.0,0.33967834]
[1672563118204,0.0168158,16528.0,16527.0,0.33967834]
[1672563120561,0.96970996,16528.0,16527.0,0.33967834]
[1672563122827,0.0168158,16528.0,16527.0,0.33967834]
[1672563124205,0.07731918,16528.0,16527.0,0.33967834]
[1672563126822,0.07731918,16528.0,16527.0,0.03897834]
[1672563127244,0.07731918,16528.0,16527.0,0.33967834]
[1672563133328,1.03019145,16528.0,16527.0,0.33967834]
[1672563135755,0.07731918,16528.0,16527.0,0.33967834]
[1672563136806,0.07731918,16528.0,16527.0,0.30571051]
[1672563138791,0.07731918,16528.0,16527.0,0.00501051]
[1672563138792,0.37801918,16528.0,16527.0,0.00501051]
[1672563140362,1.33053684,16528.0,16527.0,0.00501051]
[1672563144865,0.37801918,16528.0,16527.0,0.00501051]
[1672563147389,1.32941423,16528.0,16527.0,0.00501051]
[1672563147602,1.02871423,16528.0,16527.0,0.00501051]
[1672563154016,0.07731918,16528.0,16527.0,0.00501051]
[1672563154751,0.07731918,16528.0,16527.0,0.30571051]
[1672563156431,0.07731918,16528.0,16527.0,0.00501051]
[1672563167997,0.07731918,16528.0,16527.0,0.30571051]
[1672563170414,0.07731918,16528.0,16525.0,0.3507]
[1672563170626,0.95185048,16527.0,16525.0,0.3507]
[1672563172412,0.96285048,16527.0,16525.0,0.3907]
[1672563173151,0.96285048,16527.0,16525.0,0.3908]
[1672563173361,0.96295048,16527.0,16525.0,0.3908]
[1672563174095,0.01506999,16526.0,16525.0,0.3908]
[1672563174520,0.01506999,16526.0,16525.0,0.3907]
[1672563175260,0.96692047,16526.0,16525.0,0.3907]
[1672563175468,1.01692047,16526.0,16525.0,0.3908]
[1672563175668,0.96692047,16526.0,16525.0,0.3908]
[1672563175993,0.96702047,16526.0,16525.0,0.3908]
[1672563176413,0.97802047,16526.0,16525.0,0.3908]
[1672563177463,0.02616999,16526.0,16525.0,0.3908]
[1672563177994,0.02616999,16526.0,16525.0,0.0901]
[1672563178303,0.02616999,16526.0,16525.0,0.3908]
[1672563183668,0.02616999,16526.0,16525.0,0.0901]
[1672563183878,0.02616999,16526.0,16525.0,0.3908]
[1672563184296,1.03853118,16526.0,16525.0,0.3908]
[1672563186834,1.03853118,16526.0,16525.0,0.0901]
[1672563187047,1.03853118,16526.0,16525.0,0.3908]
[1672563187774,1.03853118,16526.0,16525.0,0.0901]
[1672563187982,1.03853118,16526.0,16525.0,0.3908]
[1672563190192,1.03853118,16526.0,16525.0,0.0901]
[1672563191031,0.0866807,16526.0,16525.0,0.0901]
[1672563192927,0.0866807,16526.0,16525.0,0.3908]
[1672563201638,0.0866807,16526.0,16525.0,0.0901]
[1672563201967,0.0866807,16526.0,16525.0,0.3908]
[1672563203431,0.07161071,16526.0,16525.0,0.3908]
[1672563203641,0.0866807,16526.0,16525.0,0.3908]
[1672563204588,0.0866807,16526.0,16525.0,0.0901]
[1672563204901,0.0866807,16526.0,16525.0,0.3908]
[1672563206790,1.03853118,16526.0,16525.0,0.3908]
[1672563213829,0.0866807,16526.0,16525.0,0.3908]
[1672563220558,1.03853118,16526.0,16525.0,0.3908]
[1672563223813,1.03853118,16526.0,16525.0,0.3907175]
[1672563228431,1.03853118,16526.0,16525.0,0.0900175]
[1672563228854,1.03853118,16526.0,16525.0,0.3907175]
[1672563229589,0.0866807,16526.0,16525.0,0.3907175]
[1672563230850,0.0866807,16526.0,16525.0,0.0900175]
[1672563231067,0.0866807,16526.0,16525.0,0.3907175]
[1672563231904,0.0866807,16526.0,16525.0,0.0900175]
[1672563232215,0.0866807,16526.0,16525.0,0.3907175]
[1672563236429,1.03853118,16526.0,16525.0,0.3907175]
[1672563237257,0.97802047,16526.0,16525.0,0.3907175]
[1672563238733,0.02616999,16526.0,16525.0,0.3907175]
[1672563243256,0.0866807,16526.0,16525.0,0.3907175]
[1672563243672,0.0866807,16526.0,16525.0,0.0900175]
[1672563243882,0.0866807,16526.0,16525.0,0.3907175]
[1672563245990,0.0866807,16526.0,16525.0,0.0900175]
[1672563246302,0.0866807,16526.0,16525.0,0.3907175]
[1672563246511,0.0866807,16526.0,16525.0,0.0900175]
[1672563246712,0.0866807,16526.0,16525.0,0.3907175]
[1672563247038,0.0866807,16526.0,16525.0,0.0900175]
[1672563247249,0.0866807,16526.0,16525.0,0.3907175]
[1672563247666,0.0866807,16526.0,16525.0,0.0900175]
[1672563247877,0.0866807,16526.0,16525.0,0.3907175]
[1672563248090,0.0866807,16526.0,16525.0,0.0900175]
[1672563248405,0.0866807,16526.0,16525.0,0.3907175]
[1672563249038,0.0866807,16526.0,16525.0,0.0900175]
[1672563249349,0.0866807,16526.0,16525.0,0.3907175]
[1672563254598,1.03955471,16526.0,16525.0,0.3907175]
[1672563255134,1.03955471,16526.0,16525.0,0.0900175]
[1672563255342,1.03955471,16526.0,16525.0,0.3907175]
[1672563259019,0.0866807,16526.0,16525.0,0.3907175]
[1672563260596,0.0866807,16526.0,16525.0,0.0900175]
[1672563260918,0.0866807,16526.0,16525.0,0.3907175]
[1672563262061,0.07161071,16526.0,16525.0,0.3907175]
[1672563262594,0.03361071,16526.0,16525.0,0.3907175]
[1672563262911,0.27364223,16529.0,16525.0,0.3907175]
[1672563263126,0.27364223,16529.0,16528.0,0.3007]
[1672563263639,0.01506999,16529.0,16526.0,0.3507]
[1672563264057,0.02506999,16529.0,16526.0,0.3507]
[1672563264272,0.06050704,16527.0,16526.0,0.3507]
[1672563264477,0.06050704,16527.0,16526.0,0.3508]
[1672563264697,0.07557703,16527.0,16526.0,0.3508]
[1672563265010,0.06050704,16527.0,16526.0,0.3538]
[1672563265428,0.06050704,16527.0,16526.0,0.3537]
[1672563266066,0.06050704,16527.0,16526.0,0.3538]
[1672563266275,0.07050704,16527.0,16526.0,0.4008]
[1672563266482,0.07060704,16527.0,16526.0,0.4008]
[1672563286245,0.07060704,16527.0,16526.0,0.1001]
[1672563286457,0.07060704,16527.0,16526.0,0.4008]
[1672563287923,0.07060704,16527.0,16526.0,0.1001]
[1672563288134,0.07060704,16527.0,16526.0,0.4008]
[1672563292874,0.07060704,16527.0,16526.0,0.1001]
[1672563293086,0.07060704,16527.0,16526.0,0.4008]
[1672563297285,0.0101,16527.0,16526.0,0.4008]
[1672563303496,0.07060704,16527.0,16526.0,0.4008]
[1672563305918,0.07060704,16527.0,16526.0,0.1001]
[1672563306118,0.07060704,16527.0,16526.0,0.4008]
[1672563313806,0.07060704,16527.0,16526.0,0.40072695]
[1672563317061,0.07060704,16527.0,16526.0,0.10002695]
[1672563317272,0.07060704,16527.0,16526.0,0.40072695]